[Event "Titled Tuesday Blitz March 14 Early 2023"]
[White "Rakhmatullaev, Almas"]
[Black "Bortnyk, Olexandr"]
[WhiteFideId "14205793"]
[BlackFideId "14120828"]
[WhiteElo "2221"]
[BlackElo "2734"]
[Result "0-1"]
[Round "08"]
[TimeControl "180+2"]
[Date "2023.03.14"]
[WhiteClock "0:00:01"]
[BlackClock "0:00:12"]

1. e4 {[%clk 0:03:00]}  Nf6 {[%clk 0:03:00]} 2. e5 {[%clk 0:02:59]}  Nd5 {[%clk 0:03:00]} 3. d4 {[%clk 0:02:59]}  d6 {[%clk 0:03:00]} 4. Nf3 {[%clk 0:02:59]}  dxe5 {[%clk 0:03:01]} 5. Nxe5 {[%clk 0:02:58]}  c6 {[%clk 0:03:01]} 6. Bc4 {[%clk 0:02:53]}  Nd7 {[%clk 0:03:01]} 7. O-O {[%clk 0:02:44]}  Nxe5 {[%clk 0:03:01]} 8. dxe5 {[%clk 0:02:44]}  Bf5 {[%clk 0:03:01]} 9. Bb3 {[%clk 0:02:36]}  e6 {[%clk 0:03:00]} 10. Nd2 {[%clk 0:02:27]}  Bc5 {[%clk 0:02:57]} 11. c3 {[%clk 0:02:20]}  Nf4 {[%clk 0:02:54]} 12. Nc4 {[%clk 0:02:02]}  Qxd1 {[%clk 0:02:23]} 13. Rxd1 {[%clk 0:02:01]}  Ne2+ {[%clk 0:02:14]} 14. Kf1 {[%clk 0:02:00]}  Nxc1 {[%clk 0:02:15]} 15. Raxc1 {[%clk 0:01:59]}  Ke7 {[%clk 0:01:40]} 16. Bc2 {[%clk 0:01:31]}  Bxc2 {[%clk 0:01:28]} 17. Rxc2 {[%clk 0:01:32]}  Rhd8 {[%clk 0:01:28]} 18. Rxd8 {[%clk 0:01:20]}  Rxd8 {[%clk 0:01:29]} 19. b4 {[%clk 0:01:18]}  Bb6 {[%clk 0:01:28]} 20. Nd6 {[%clk 0:01:17]}  Rb8 {[%clk 0:01:17]} 21. Rd2 {[%clk 0:01:03]}  Bc7 {[%clk 0:01:16]} 22. c4 {[%clk 0:00:49]}  b5 {[%clk 0:01:10]} 23. c5 {[%clk 0:00:46]}  a5 {[%clk 0:01:10]} 24. bxa5 {[%clk 0:00:23]}  Bxa5 {[%clk 0:01:08]} 25. Rd3 {[%clk 0:00:23]}  Bb4 {[%clk 0:01:06]} 26. Rf3 {[%clk 0:00:23]}  f5 {[%clk 0:01:03]} 27. exf6+ {[%clk 0:00:18]}  gxf6 {[%clk 0:01:04]} 28. Rh3 {[%clk 0:00:16]}  f5 {[%clk 0:01:02]} 29. Rxh7+ {[%clk 0:00:15]}  Kf6 {[%clk 0:01:03]} 30. Rc7 {[%clk 0:00:11]}  Bxc5 {[%clk 0:00:43]} 31. Rxc6 {[%clk 0:00:10]}  Bd4 {[%clk 0:00:43]} 32. f4 {[%clk 0:00:07]}  Ke7 {[%clk 0:00:35]} 33. Ra6 {[%clk 0:00:05]}  Bc5 {[%clk 0:00:34]} 34. Nxf5+ {[%clk 0:00:03]}  exf5 {[%clk 0:00:34]} 35. g3 {[%clk 0:00:03]}  Rd8 {[%clk 0:00:32]} 36. h3 {[%clk 0:00:02]}  Rd1+ {[%clk 0:00:31]} 37. Ke2 {[%clk 0:00:02]}  Rg1 {[%clk 0:00:31]} 38. g4 {[%clk 0:00:03]}  Kd7 {[%clk 0:00:16]} 39. gxf5 {[%clk 0:00:02]}  Rg3 {[%clk 0:00:16]} 40. f6 {[%clk 0:00:03]}  Re3+ {[%clk 0:00:15]} 41. Kd2 {[%clk 0:00:03]}  Rxh3 {[%clk 0:00:16]} 42. f5 {[%clk 0:00:03]}  Rf3 {[%clk 0:00:15]} 43. Ke2 {[%clk 0:00:01]}  Rxf5 {[%clk 0:00:15]} 44. Kd3 {[%clk 0:00:02]}  Bd6 {[%clk 0:00:14]} 45. Ke4 {[%clk 0:00:03]}  Rxf6 {[%clk 0:00:14]} 46. Kd5 {[%clk 0:00:03]}  Rf5+ {[%clk 0:00:14]} 47. Ke4 {[%clk 0:00:03]}  Rh5 {[%clk 0:00:14]} 48. Kd4 {[%clk 0:00:04]}  Kc7 {[%clk 0:00:14]} 49. Ke4 {[%clk 0:00:04]}  Bc5 {[%clk 0:00:11]} 50. a4 {[%clk 0:00:02]}  bxa4 {[%clk 0:00:11]} 51. Kd3 {[%clk 0:00:01]}  Rh4 {[%clk 0:00:11]} 52. Kc3 {[%clk 0:00:01]}  Bb6 {[%clk 0:00:11]} 53. Kb2 {[%clk 0:00:01]}  Kb7 {[%clk 0:00:12]} 0-1


[Site "https://www.chess.com"]

[Event "Titled Tuesday Blitz March 14 Early 2023"]
[White "Dehtiarov, Roman"]
[Black "Timofeev, Artyom"]
[WhiteFideId "14186640"]
[BlackFideId "4140419"]
[WhiteElo "2162"]
[BlackElo "2586"]
[Result "1/2-1/2"]
[Round "08"]
[TimeControl "180+2"]
[Date "2023.03.14"]
[WhiteClock "0:00:07"]
[BlackClock "0:00:02"]

1. e4 {[%clk 0:03:00]}  c5 {[%clk 0:02:59]} 2. Nc3 {[%clk 0:03:01]}  d6 {[%clk 0:02:58]} 3. f4 {[%clk 0:03:01]}  g6 {[%clk 0:02:56]} 4. Nf3 {[%clk 0:03:01]}  Bg7 {[%clk 0:02:55]} 5. Bb5+ {[%clk 0:03:02]}  Bd7 {[%clk 0:02:53]} 6. Bxd7+ {[%clk 0:03:03]}  Qxd7 {[%clk 0:02:53]} 7. O-O {[%clk 0:03:03]}  Nc6 {[%clk 0:02:53]} 8. d3 {[%clk 0:03:04]}  Nf6 {[%clk 0:02:50]} 9. Qe1 {[%clk 0:03:04]}  O-O-O {[%clk 0:02:45]} 10. h3 {[%clk 0:03:03]}  Kb8 {[%clk 0:02:45]} 11. Be3 {[%clk 0:03:03]}  h6 {[%clk 0:02:34]} 12. Qf2 {[%clk 0:03:01]}  g5 {[%clk 0:02:26]} 13. e5 {[%clk 0:02:57]}  Nh5 {[%clk 0:02:18]} 14. fxg5 {[%clk 0:02:53]}  Nxe5 {[%clk 0:02:13]} 15. gxh6 {[%clk 0:02:44]}  Nxf3+ {[%clk 0:02:12]} 16. Qxf3 {[%clk 0:02:45]}  Bxh6 {[%clk 0:02:12]} 17. Bxh6 {[%clk 0:02:44]}  Rxh6 {[%clk 0:02:12]} 18. Ne4 {[%clk 0:02:39]}  f6 {[%clk 0:01:51]} 19. Qg4 {[%clk 0:02:21]}  Rhh8 {[%clk 0:01:42]} 20. Qxd7 {[%clk 0:02:21]}  Rxd7 {[%clk 0:01:42]} 21. Rf3 {[%clk 0:02:21]}  Ng7 {[%clk 0:01:39]} 22. Raf1 {[%clk 0:02:21]}  Ne6 {[%clk 0:01:39]} 23. c3 {[%clk 0:02:21]}  d5 {[%clk 0:01:38]} 24. Nd2 {[%clk 0:02:17]}  d4 {[%clk 0:01:36]} 25. c4 {[%clk 0:02:17]}  Ng5 {[%clk 0:01:33]} 26. Rg3 {[%clk 0:02:15]}  b6 {[%clk 0:01:30]} 27. Rf4 {[%clk 0:02:09]}  Kc7 {[%clk 0:01:29]} 28. Ne4 {[%clk 0:02:06]}  Nf7 {[%clk 0:01:27]} 29. Rg7 {[%clk 0:02:03]}  Ne5 {[%clk 0:01:25]} 30. Rg3 {[%clk 0:02:01]}  Nc6 {[%clk 0:01:24]} 31. a3 {[%clk 0:02:01]}  Rh5 {[%clk 0:01:22]} 32. Rg7 {[%clk 0:01:53]}  Ne5 {[%clk 0:01:16]} 33. Nf2 {[%clk 0:01:53]}  Rh8 {[%clk 0:01:10]} 34. h4 {[%clk 0:01:48]}  Kd6 {[%clk 0:01:06]} 35. Kf1 {[%clk 0:01:45]}  Ke6 {[%clk 0:01:06]} 36. Ke2 {[%clk 0:01:45]}  Rdd8 {[%clk 0:01:05]} 37. g3 {[%clk 0:01:37]}  Rdg8 {[%clk 0:01:00]} 38. Rxg8 {[%clk 0:01:35]}  Rxg8 {[%clk 0:01:00]} 39. g4 {[%clk 0:01:36]}  b5 {[%clk 0:00:48]} 40. b3 {[%clk 0:01:31]}  bxc4 {[%clk 0:00:47]} 41. bxc4 {[%clk 0:01:32]}  Rb8 {[%clk 0:00:46]} 42. h5 {[%clk 0:01:11]}  a5 {[%clk 0:00:44]} 43. h6 {[%clk 0:01:04]}  Rh8 {[%clk 0:00:41]} 44. Ne4 {[%clk 0:01:04]}  Rxh6 {[%clk 0:00:26]} 45. Nxc5+ {[%clk 0:01:04]}  Kd6 {[%clk 0:00:27]} 46. Nb7+ {[%clk 0:01:04]}  Kc7 {[%clk 0:00:27]} 47. Nc5 {[%clk 0:00:51]}  Rh2+ {[%clk 0:00:26]} 48. Rf2 {[%clk 0:00:45]}  Rh3 {[%clk 0:00:18]} 49. g5 {[%clk 0:00:25]}  Re3+ {[%clk 0:00:14]} 50. Kd2 {[%clk 0:00:23]}  Nf3+ {[%clk 0:00:14]} 51. Kc2 {[%clk 0:00:18]}  Nxg5 {[%clk 0:00:14]} 52. Nb3 {[%clk 0:00:16]}  Ne6 {[%clk 0:00:12]} 53. a4 {[%clk 0:00:10]}  Kb6 {[%clk 0:00:11]} 54. Rf5 {[%clk 0:00:08]}  Re5 {[%clk 0:00:10]} 55. Rf2 {[%clk 0:00:07]}  Re3 {[%clk 0:00:07]} 56. Rf5 {[%clk 0:00:07]}  Re5 {[%clk 0:00:07]} 57. Rf2 {[%clk 0:00:07]}  Kc6 {[%clk 0:00:07]} 58. Rh2 {[%clk 0:00:06]}  Kd6 {[%clk 0:00:06]} 59. Kd2 {[%clk 0:00:05]}  Ng5 {[%clk 0:00:05]} 60. Nxd4 {[%clk 0:00:04]}  Kc5 {[%clk 0:00:05]} 61. Kc3 {[%clk 0:00:04]}  Re3 {[%clk 0:00:04]} 62. Nb3+ {[%clk 0:00:04]}  Kb6 {[%clk 0:00:04]} 63. Kd4 {[%clk 0:00:03]}  Rg3 {[%clk 0:00:04]} 64. Re2 {[%clk 0:00:02]}  Nf3+ {[%clk 0:00:04]} 65. Kc3 {[%clk 0:00:03]}  Ne5 {[%clk 0:00:04]} 66. Rd2 {[%clk 0:00:03]}  Nc6 {[%clk 0:00:04]} 67. c5+ {[%clk 0:00:03]}  Kc7 {[%clk 0:00:03]} 68. Kc4 {[%clk 0:00:04]}  e6 {[%clk 0:00:03]} 69. d4 {[%clk 0:00:04]}  Nb4 {[%clk 0:00:03]} 70. Nxa5 {[%clk 0:00:03]}  Nd5 {[%clk 0:00:04]} 71. Rb2 {[%clk 0:00:02]}  Rc3+ {[%clk 0:00:03]} 72. Kb5 {[%clk 0:00:03]}  e5 {[%clk 0:00:02]} 73. Rh2 {[%clk 0:00:03]}  exd4 {[%clk 0:00:02]} 74. Rh7+ {[%clk 0:00:04]}  Kd8 {[%clk 0:00:03]} 75. Kc6 {[%clk 0:00:04]}  Ne7+ {[%clk 0:00:02]} 76. Kd6 {[%clk 0:00:05]}  Nf5+ {[%clk 0:00:02]} 77. Ke6 {[%clk 0:00:06]}  d3 {[%clk 0:00:02]} 78. Nc6+ {[%clk 0:00:04]}  Kc8 {[%clk 0:00:02]} 79. Kxf5 {[%clk 0:00:04]}  d2 {[%clk 0:00:02]} 80. Rh8+ {[%clk 0:00:05]}  Kc7 {[%clk 0:00:02]} 81. Rd8 {[%clk 0:00:05]}  Rxc5+ {[%clk 0:00:01]} 82. Ke4 {[%clk 0:00:06]}  Rxc6 {[%clk 0:00:01]} 83. Rxd2 {[%clk 0:00:06]}  Ra6 {[%clk 0:00:02]} 84. Kf5 {[%clk 0:00:06]}  Kb7 {[%clk 0:00:02]} 85. Re2 {[%clk 0:00:06]}  Rxa4 {[%clk 0:00:02]} 86. Kxf6 {[%clk 0:00:06]}  Ra6+ {[%clk 0:00:02]} 87. Re6 {[%clk 0:00:06]}  Rxe6+ {[%clk 0:00:02]} 88. Kxe6 {[%clk 0:00:07]} 1/2-1/2


[Site "https://www.chess.com"]

[Event "Titled Tuesday Blitz March 14 Early 2023"]
[White "Pakleza, Zbigniew"]
[Black "Reprintsev, Alexander"]
[WhiteFideId "1119290"]
[BlackFideId "14100541"]
[WhiteElo "2410"]
[BlackElo "2229"]
[Result "1-0"]
[Round "08"]
[TimeControl "180+2"]
[Date "2023.03.14"]
[WhiteClock "0:00:08"]
[BlackClock "0:00:02"]

1. d4 {[%clk 0:02:50]}  d5 {[%clk 0:02:59]} 2. Bf4 {[%clk 0:02:49]}  Nf6 {[%clk 0:02:58]} 3. e3 {[%clk 0:02:49]}  c5 {[%clk 0:02:57]} 4. c3 {[%clk 0:02:50]}  Qb6 {[%clk 0:02:56]} 5. Qb3 {[%clk 0:02:49]}  c4 {[%clk 0:02:55]} 6. Qc2 {[%clk 0:02:49]}  g6 {[%clk 0:02:56]} 7. Nd2 {[%clk 0:02:42]}  Bf5 {[%clk 0:02:55]} 8. Qc1 {[%clk 0:02:43]}  Bg7 {[%clk 0:02:55]} 9. Ngf3 {[%clk 0:02:43]}  O-O {[%clk 0:02:55]} 10. Be2 {[%clk 0:02:42]}  Nc6 {[%clk 0:02:54]} 11. h3 {[%clk 0:02:42]}  Rae8 {[%clk 0:02:48]} 12. O-O {[%clk 0:02:39]}  Nd7 {[%clk 0:02:47]} 13. Re1 {[%clk 0:02:10]}  e5 {[%clk 0:02:46]} 14. Bh2 {[%clk 0:02:10]}  Be6 {[%clk 0:02:39]} 15. b3 {[%clk 0:01:40]}  cxb3 {[%clk 0:02:37]} 16. Nxb3 {[%clk 0:01:38]}  h6 {[%clk 0:02:33]} 17. Rb1 {[%clk 0:01:34]}  Qd8 {[%clk 0:02:30]} 18. Qa3 {[%clk 0:01:27]}  Qe7 {[%clk 0:02:21]} 19. Qxe7 {[%clk 0:01:19]}  Rxe7 {[%clk 0:02:21]} 20. Rec1 {[%clk 0:01:13]}  Rc8 {[%clk 0:02:11]} 21. a4 {[%clk 0:01:10]}  b6 {[%clk 0:02:05]} 22. Ba6 {[%clk 0:01:07]}  Rd8 {[%clk 0:02:00]} 23. Ra1 {[%clk 0:01:05]}  Ndb8 {[%clk 0:01:53]} 24. Bf1 {[%clk 0:01:04]}  a5 {[%clk 0:01:44]} 25. Nxe5 {[%clk 0:01:01]}  Nxe5 {[%clk 0:01:44]} 26. Bxe5 {[%clk 0:00:58]}  Bxe5 {[%clk 0:01:44]} 27. dxe5 {[%clk 0:00:59]}  Bd7 {[%clk 0:01:30]} 28. f4 {[%clk 0:00:54]}  Rc8 {[%clk 0:01:28]} 29. Nd4 {[%clk 0:00:50]}  f6 {[%clk 0:01:25]} 30. Nf3 {[%clk 0:00:44]}  Kf7 {[%clk 0:01:14]} 31. Kf2 {[%clk 0:00:42]}  g5 {[%clk 0:01:11]} 32. g3 {[%clk 0:00:38]}  Nc6 {[%clk 0:01:07]} 33. exf6 {[%clk 0:00:36]}  Kxf6 {[%clk 0:01:07]} 34. Rab1 {[%clk 0:00:36]}  Rb8 {[%clk 0:01:00]} 35. Rd1 {[%clk 0:00:35]}  Be6 {[%clk 0:00:55]} 36. Bb5 {[%clk 0:00:32]}  Na7 {[%clk 0:00:53]} 37. h4 {[%clk 0:00:31]}  Nxb5 {[%clk 0:00:50]} 38. Rxb5 {[%clk 0:00:20]}  gxh4 {[%clk 0:00:50]} 39. gxh4 {[%clk 0:00:18]}  Rc7 {[%clk 0:00:50]} 40. Rdb1 {[%clk 0:00:16]}  Rxc3 {[%clk 0:00:44]} 41. Rxb6 {[%clk 0:00:16]}  Rxb6 {[%clk 0:00:42]} 42. Rxb6 {[%clk 0:00:17]}  Ke7 {[%clk 0:00:34]} 43. Nd4 {[%clk 0:00:17]}  Bd7 {[%clk 0:00:31]} 44. Rxh6 {[%clk 0:00:14]}  Bxa4 {[%clk 0:00:31]} 45. Ra6 {[%clk 0:00:14]}  Rc5 {[%clk 0:00:30]} 46. h5 {[%clk 0:00:14]}  Kf7 {[%clk 0:00:16]} 47. h6 {[%clk 0:00:14]}  Kg8 {[%clk 0:00:16]} 48. Ra7 {[%clk 0:00:12]}  Kh8 {[%clk 0:00:14]} 49. Ne6 {[%clk 0:00:09]}  Rc6 {[%clk 0:00:11]} 50. Ng5 {[%clk 0:00:09]}  Rc8 {[%clk 0:00:02]} 51. Nf7+ {[%clk 0:00:08]} 1-0


[Site "https://www.chess.com"]

[Event "Titled Tuesday Blitz March 14 Early 2023"]
[White "Demin, Vladimir"]
[Black "Salinas Herrera, Pablo"]
[WhiteFideId "4167457"]
[BlackFideId "3407128"]
[WhiteElo "2618"]
[BlackElo "2550"]
[Result "1/2-1/2"]
[Round "08"]
[TimeControl "180+2"]
[Date "2023.03.14"]
[WhiteClock "0:00:05"]
[BlackClock "0:00:15"]

1. e4 {[%clk 0:03:00]}  c5 {[%clk 0:03:00]} 2. Nf3 {[%clk 0:02:59]}  d6 {[%clk 0:03:00]} 3. d4 {[%clk 0:02:59]}  cxd4 {[%clk 0:03:01]} 4. Qxd4 {[%clk 0:03:00]}  a6 {[%clk 0:03:01]} 5. Be3 {[%clk 0:02:59]}  Nc6 {[%clk 0:03:00]} 6. Qd2 {[%clk 0:02:59]}  g6 {[%clk 0:03:00]} 7. Nc3 {[%clk 0:02:59]}  Bg7 {[%clk 0:03:00]} 8. O-O-O {[%clk 0:03:00]}  Qa5 {[%clk 0:02:57]} 9. Nd4 {[%clk 0:02:57]}  Be6 {[%clk 0:02:30]} 10. Kb1 {[%clk 0:02:46]}  Nxd4 {[%clk 0:02:23]} 11. Bxd4 {[%clk 0:02:45]}  Nf6 {[%clk 0:02:23]} 12. f3 {[%clk 0:02:39]}  Rc8 {[%clk 0:02:22]} 13. Nd5 {[%clk 0:02:32]}  Qxd2 {[%clk 0:02:21]} 14. Nxf6+ {[%clk 0:02:32]}  Bxf6 {[%clk 0:02:20]} 15. Rxd2 {[%clk 0:02:33]}  Bxd4 {[%clk 0:02:21]} 16. Rxd4 {[%clk 0:02:33]}  f6 {[%clk 0:02:11]} 17. h4 {[%clk 0:02:24]}  Kf7 {[%clk 0:02:10]} 18. Be2 {[%clk 0:02:20]}  Rc5 {[%clk 0:02:09]} 19. Rhd1 {[%clk 0:02:06]}  h5 {[%clk 0:02:05]} 20. Rb4 {[%clk 0:01:45]}  Rc7 {[%clk 0:02:04]} 21. a4 {[%clk 0:01:36]}  Rhc8 {[%clk 0:01:47]} 22. Rd2 {[%clk 0:01:35]}  Rg8 {[%clk 0:01:47]} 23. f4 {[%clk 0:01:30]}  Rh8 {[%clk 0:01:39]} 24. a5 {[%clk 0:01:18]}  Kg7 {[%clk 0:01:32]} 25. b3 {[%clk 0:01:13]}  Rhc8 {[%clk 0:01:31]} 26. Kb2 {[%clk 0:01:09]}  Rf8 {[%clk 0:01:27]} 27. Bf3 {[%clk 0:01:06]}  Bc8 {[%clk 0:01:26]} 28. Rb6 {[%clk 0:01:00]}  Kf7 {[%clk 0:00:51]} 29. Rd3 {[%clk 0:00:53]}  Rh8 {[%clk 0:00:49]} 30. Rc3 {[%clk 0:00:52]}  Rd7 {[%clk 0:00:40]} 31. Rb4 {[%clk 0:00:44]}  Rg8 {[%clk 0:00:29]} 32. Be2 {[%clk 0:00:28]}  Rf8 {[%clk 0:00:24]} 33. Bc4+ {[%clk 0:00:27]}  e6 {[%clk 0:00:24]} 34. Rb6 {[%clk 0:00:20]}  Ke7 {[%clk 0:00:24]} 35. f5 {[%clk 0:00:15]}  gxf5 {[%clk 0:00:20]} 36. exf5 {[%clk 0:00:16]}  exf5 {[%clk 0:00:17]} 37. Re3+ {[%clk 0:00:16]}  Kd8 {[%clk 0:00:18]} 38. Rd3 {[%clk 0:00:16]}  Kc7 {[%clk 0:00:18]} 39. Bd5 {[%clk 0:00:11]}  Re7 {[%clk 0:00:16]} 40. Bf3 {[%clk 0:00:11]}  Rd8 {[%clk 0:00:16]} 41. Bxh5 {[%clk 0:00:10]}  f4 {[%clk 0:00:15]} 42. Bf3 {[%clk 0:00:10]}  Re5 {[%clk 0:00:16]} 43. Rd4 {[%clk 0:00:10]}  Rxa5 {[%clk 0:00:16]} 44. Rbb4 {[%clk 0:00:09]}  f5 {[%clk 0:00:15]} 45. Rxf4 {[%clk 0:00:09]}  Re5 {[%clk 0:00:15]} 46. Rbd4 {[%clk 0:00:09]}  Be6 {[%clk 0:00:15]} 47. h5 {[%clk 0:00:10]}  Rg8 {[%clk 0:00:14]} 48. Rh4 {[%clk 0:00:10]}  Rh8 {[%clk 0:00:14]} 49. Rd1 {[%clk 0:00:09]}  Bd7 {[%clk 0:00:14]} 50. Rhd4 {[%clk 0:00:09]}  Re6 {[%clk 0:00:14]} 51. Rc4+ {[%clk 0:00:06]}  Bc6 {[%clk 0:00:14]} 52. Rdd4 {[%clk 0:00:05]}  Rf6 {[%clk 0:00:14]} 53. Rh4 {[%clk 0:00:04]}  Kb6 {[%clk 0:00:13]} 54. Rb4+ {[%clk 0:00:04]}  Kc7 {[%clk 0:00:14]} 55. Rbc4 {[%clk 0:00:04]}  a5 {[%clk 0:00:14]} 56. Bxc6 {[%clk 0:00:04]}  bxc6 {[%clk 0:00:15]} 57. Rc3 {[%clk 0:00:04]}  Kb6 {[%clk 0:00:14]} 58. Rf3 {[%clk 0:00:05]}  d5 {[%clk 0:00:14]} 59. Kc3 {[%clk 0:00:04]}  Rhh6 {[%clk 0:00:13]} 60. Kb2 {[%clk 0:00:05]}  Kc5 {[%clk 0:00:13]} 61. Kc3 {[%clk 0:00:03]}  Kb5 {[%clk 0:00:13]} 62. Kb2 {[%clk 0:00:04]}  c5 {[%clk 0:00:13]} 63. Rf1 {[%clk 0:00:04]}  f4 {[%clk 0:00:13]} 64. Rf3 {[%clk 0:00:03]}  Rf5 {[%clk 0:00:13]} 65. Rhxf4 {[%clk 0:00:04]}  Rfxh5 {[%clk 0:00:13]} 66. Rf8 {[%clk 0:00:04]}  Rg5 {[%clk 0:00:13]} 67. Rb8+ {[%clk 0:00:04]}  Kc6 {[%clk 0:00:13]} 68. g3 {[%clk 0:00:03]}  Rhg6 {[%clk 0:00:13]} 69. Ra8 {[%clk 0:00:03]}  Rxg3 {[%clk 0:00:12]} 70. Rxg3 {[%clk 0:00:03]}  Rxg3 {[%clk 0:00:13]} 71. Rxa5 {[%clk 0:00:03]}  d4 {[%clk 0:00:13]} 72. Ra8 {[%clk 0:00:03]}  Rg2 {[%clk 0:00:13]} 73. Rd8 {[%clk 0:00:02]}  Kb5 {[%clk 0:00:13]} 74. Rd6 {[%clk 0:00:02]}  Ka5 {[%clk 0:00:13]} 75. Rd8 {[%clk 0:00:03]}  Kb6 {[%clk 0:00:14]} 76. Rd7 {[%clk 0:00:04]}  Kc6 {[%clk 0:00:14]} 77. Rd8 {[%clk 0:00:04]}  Kc7 {[%clk 0:00:14]} 78. Rd5 {[%clk 0:00:04]}  Kc6 {[%clk 0:00:15]} 79. Rd8 {[%clk 0:00:05]} 1/2-1/2


[Site "https://www.chess.com"]

[Event "Titled Tuesday Blitz March 14 Early 2023"]
[White "Yuan, Qingyu"]
[Black "polandchessplayer"]
[WhiteFideId "8609772"]
[WhiteElo "2359"]
[BlackElo "2601"]
[Result "1-0"]
[Round "08"]
[TimeControl "180+2"]
[Date "2023.03.14"]
[WhiteClock "0:00:29"]
[BlackClock "0:00:28"]

1. e4 {[%clk 0:02:58]}  c6 {[%clk 0:02:57]} 2. d4 {[%clk 0:02:58]}  d5 {[%clk 0:02:58]} 3. exd5 {[%clk 0:02:59]}  cxd5 {[%clk 0:02:59]} 4. Bd3 {[%clk 0:02:59]}  Nc6 {[%clk 0:02:59]} 5. c3 {[%clk 0:03:00]}  Nf6 {[%clk 0:03:00]} 6. h3 {[%clk 0:03:00]}  g6 {[%clk 0:03:00]} 7. Nf3 {[%clk 0:03:00]}  Bf5 {[%clk 0:03:01]} 8. O-O {[%clk 0:03:01]}  Bg7 {[%clk 0:02:58]} 9. Re1 {[%clk 0:03:01]}  O-O {[%clk 0:02:58]} 10. Bf1 {[%clk 0:03:01]}  Ne4 {[%clk 0:02:56]} 11. Nbd2 {[%clk 0:02:58]}  h6 {[%clk 0:02:56]} 12. Nxe4 {[%clk 0:02:58]}  Bxe4 {[%clk 0:02:56]} 13. Nd2 {[%clk 0:02:53]}  Bf5 {[%clk 0:02:56]} 14. Nb3 {[%clk 0:02:53]}  Rc8 {[%clk 0:02:43]} 15. Bf4 {[%clk 0:02:50]}  Re8 {[%clk 0:02:38]} 16. Nc5 {[%clk 0:02:35]}  b6 {[%clk 0:02:34]} 17. Nb3 {[%clk 0:02:33]}  Qd7 {[%clk 0:02:30]} 18. Ba6 {[%clk 0:02:30]}  Rcd8 {[%clk 0:02:31]} 19. Bb5 {[%clk 0:02:26]}  Qb7 {[%clk 0:02:31]} 20. Qe2 {[%clk 0:02:23]}  Bd7 {[%clk 0:02:14]} 21. Ba6 {[%clk 0:02:14]}  Qa8 {[%clk 0:02:13]} 22. Bc7 {[%clk 0:02:14]}  e5 {[%clk 0:02:03]} 23. Bxd8 {[%clk 0:02:03]}  Qxd8 {[%clk 0:02:03]} 24. dxe5 {[%clk 0:01:56]}  Nxe5 {[%clk 0:01:58]} 25. Qd2 {[%clk 0:01:19]}  Bxh3 {[%clk 0:01:50]} 26. f4 {[%clk 0:01:13]}  Nc4 {[%clk 0:01:20]} 27. Bxc4 {[%clk 0:01:12]}  dxc4 {[%clk 0:01:21]} 28. Qxd8 {[%clk 0:01:12]}  Rxd8 {[%clk 0:01:21]} 29. gxh3 {[%clk 0:01:13]}  cxb3 {[%clk 0:01:22]} 30. axb3 {[%clk 0:01:14]}  a5 {[%clk 0:01:17]} 31. Rad1 {[%clk 0:01:13]}  Rc8 {[%clk 0:01:10]} 32. Rd6 {[%clk 0:00:56]}  Bf8 {[%clk 0:01:10]} 33. Rd5 {[%clk 0:00:51]}  Kg7 {[%clk 0:01:00]} 34. Kg2 {[%clk 0:00:50]}  Rc6 {[%clk 0:00:58]} 35. Re8 {[%clk 0:00:46]}  Bc5 {[%clk 0:00:53]} 36. Kf3 {[%clk 0:00:45]}  h5 {[%clk 0:00:51]} 37. Ke4 {[%clk 0:00:42]}  Kf6 {[%clk 0:00:49]} 38. Rdd8 {[%clk 0:00:37]}  Be7 {[%clk 0:00:46]} 39. Rd7 {[%clk 0:00:33]}  Bc5 {[%clk 0:00:34]} 40. Kd5 {[%clk 0:00:31]}  Re6 {[%clk 0:00:31]} 41. Rxf7+ {[%clk 0:00:31]}  Kxf7 {[%clk 0:00:30]} 42. Rxe6 {[%clk 0:00:32]}  h4 {[%clk 0:00:28]} 43. Rc6 {[%clk 0:00:30]}  Be3 {[%clk 0:00:26]} 44. Ke4 {[%clk 0:00:30]}  Bf2 {[%clk 0:00:20]} 45. Kf3 {[%clk 0:00:27]}  Bg1 {[%clk 0:00:19]} 46. Kg4 {[%clk 0:00:27]}  Bf2 {[%clk 0:00:19]} 47. Kg5 {[%clk 0:00:28]}  Be3 {[%clk 0:00:20]} 48. Rf6+ {[%clk 0:00:28]}  Ke7 {[%clk 0:00:19]} 49. Rxg6 {[%clk 0:00:29]}  Bc1 {[%clk 0:00:20]} 50. Rxb6 {[%clk 0:00:27]}  Bxb2 {[%clk 0:00:21]} 51. c4 {[%clk 0:00:26]}  Bd4 {[%clk 0:00:20]} 52. Rb5 {[%clk 0:00:26]}  Bc3 {[%clk 0:00:20]} 53. Kxh4 {[%clk 0:00:26]}  Kd6 {[%clk 0:00:20]} 54. Kg4 {[%clk 0:00:27]}  Kc6 {[%clk 0:00:21]} 55. h4 {[%clk 0:00:27]}  Be1 {[%clk 0:00:22]} 56. h5 {[%clk 0:00:28]}  Kd6 {[%clk 0:00:23]} 57. Kf5 {[%clk 0:00:28]}  Ke7 {[%clk 0:00:24]} 58. Kg6 {[%clk 0:00:28]}  Kf8 {[%clk 0:00:25]} 59. f5 {[%clk 0:00:29]}  Ke7 {[%clk 0:00:25]} 60. f6+ {[%clk 0:00:28]}  Ke6 {[%clk 0:00:26]} 61. h6 {[%clk 0:00:29]}  Kd7 {[%clk 0:00:27]} 62. h7 {[%clk 0:00:29]}  Kc6 {[%clk 0:00:28]} 1-0


[Site "https://www.chess.com"]

[Event "Titled Tuesday Blitz March 14 Early 2023"]
[White "Vlassov, Nikolai"]
[Black "Molina, Roberto Junio Brito"]
[WhiteFideId "4103360"]
[BlackFideId "2109450"]
[WhiteElo "2324"]
[BlackElo "2376"]
[Result "0-1"]
[Round "08"]
[TimeControl "180+2"]
[Date "2023.03.14"]
[WhiteClock "0:00:25"]
[BlackClock "0:00:27"]

1. e4 {[%clk 0:03:00]}  c6 {[%clk 0:02:48]} 2. d4 {[%clk 0:03:00]}  d5 {[%clk 0:02:48]} 3. e5 {[%clk 0:03:01]}  Bf5 {[%clk 0:02:48]} 4. Nc3 {[%clk 0:03:00]}  e6 {[%clk 0:02:47]} 5. g4 {[%clk 0:03:00]}  Bg6 {[%clk 0:02:47]} 6. Nge2 {[%clk 0:03:01]}  f6 {[%clk 0:02:46]} 7. Nf4 {[%clk 0:03:00]}  fxe5 {[%clk 0:02:46]} 8. dxe5 {[%clk 0:03:00]}  Bf7 {[%clk 0:02:46]} 9. Qe2 {[%clk 0:02:59]}  Bb4 {[%clk 0:02:32]} 10. Bd2 {[%clk 0:02:58]}  Ne7 {[%clk 0:02:29]} 11. O-O-O {[%clk 0:02:54]}  Nd7 {[%clk 0:02:28]} 12. Kb1 {[%clk 0:02:53]}  Ba5 {[%clk 0:02:23]} 13. Bh3 {[%clk 0:02:44]}  g5 {[%clk 0:02:09]} 14. Nd3 {[%clk 0:02:36]}  h6 {[%clk 0:02:08]} 15. f4 {[%clk 0:02:36]}  Qc7 {[%clk 0:01:59]} 16. Rhe1 {[%clk 0:01:56]}  O-O-O {[%clk 0:01:56]} 17. Na4 {[%clk 0:01:48]}  Bxd2 {[%clk 0:01:53]} 18. Qxd2 {[%clk 0:01:49]}  c5 {[%clk 0:01:46]} 19. Qe3 {[%clk 0:01:33]}  d4 {[%clk 0:01:40]} 20. Qf3 {[%clk 0:01:25]}  Nd5 {[%clk 0:01:31]} 21. c4 {[%clk 0:01:15]}  Ne3 {[%clk 0:01:22]} 22. Rc1 {[%clk 0:01:11]}  gxf4 {[%clk 0:01:10]} 23. Qxf4 {[%clk 0:01:07]}  Bg6 {[%clk 0:01:07]} 24. Rxe3 {[%clk 0:00:56]}  Rdf8 {[%clk 0:00:57]} 25. Qg3 {[%clk 0:00:45]}  dxe3 {[%clk 0:00:57]} 26. Qxe3 {[%clk 0:00:38]}  Nxe5 {[%clk 0:00:48]} 27. Nxc5 {[%clk 0:00:37]}  Nxd3 {[%clk 0:00:46]} 28. Qxe6+ {[%clk 0:00:29]}  Kb8 {[%clk 0:00:42]} 29. Nd7+ {[%clk 0:00:25]}  Qxd7 {[%clk 0:00:27]} 30. Qxg6 {[%clk 0:00:25]} 0-1


[Site "https://www.chess.com"]